Workbook

Sheet CashFlow
B1: 456 Lombard St, New Haven, Ct
B2: 1(Studio), 5(1 beds), 4 (2 beds), 4 (3 beds), 2 (4 beds)- From Co Star
B4: Monthly Operating Income | C4: As Is | D4: Pro Forma
B5: Number of Units | C5: 16 | D5: 16
B6: Average Monthly Rent per Unit | C6: 2000 | D6: 2200
B7: Total Rental Income | C7: ='Rent Roll'!C18 -> 31833 | D7: ='Rent Roll'!D18 -> 35033
B8: % Vacancy and Credit Losses | C8: 0.05 | D8: 0.05
B9: Total Vacancy Loss | C9: =C7*C8 -> 1591.65 | D9: 1751.65
B10: Other Monthly Income (laundry, vending, parking, etc.)
B11: Gross Monthly Operating Income | C11: =C7-C9+C10 -> 30241.35 | D11: 33281.35
B13: Monthly Operating Expenses
B14: Property Management Fees | C14: =C$7*0.04 -> 1273.32 | D14: 1401.32 | E14: 4% Management From Seller
B15: Repairs and Maintenance | C15: =6000/12 -> 500 | D15: 500 | E15: Direct From Seller
B16: Real Estate Taxes | C16: 3697.25 | D16: 3697
B17: Rental Property Insurance | C17: 1250 | D17: 1250
B18: Landscaping | C18: 41.67 | D18: 41.67
B19: Cleaning
B20: Common Utilities | E20: Common Utiltiies
B21: - Water | C21: 416.67 | D21: 416.67
B22: - Sewer | C22: 416.67 | D22: 416.67
B23: - Electric | C23: 350 | D23: 350
B24: -Trash | C24: 480 | D24: 480
B25: - Heat | C25: 0 | D25: 0
B26: Pest Control | C26: 0 | D26: 0
B27: Advertising
B28: Monthly Operating Expenses | C28: =SUM(C14:C27) -> 8425.58 | D28: 8553.33
B30: Net Operating Income (NOI)
B31: Total Annual Operating Income | C31: =C11*12 -> 362896.2 | D31: 399376.2
B32: Total Annual Operating Expense | C32: =C28*12 -> 101106.96 | D32: 102639.96
B33: Annual Net Operating Income | C33: =C31-C32 -> 261789.24 | D33: 296736.24
B35: Capitalization Rate and Valuation
B36: Desired Capitalization Rate | C36: 0.065 | D36: 0.07
B37: Property Valuation (Offer Price) | C37: =IF(C36=0," - ",C33/C36) -> 4027526.769 | D37: 4239089.143
B38: Actual Purchase Price | C38: 3852000 | D38: 3852000
B39: Actual Capitalization Rate | C39: =IF(C38=0," - ",C33/C38) -> 0.06796190031 | D39: 0.07703433022
B41: Loan Information
B42: Down Payment | C42: =C38*0.3 -> 1155600 | D42: 1155600 | E42: 30% Down
B43: Loan Amount | C43: =C38-C42 -> 2696400 | D43: 2696400 | E43: 70% LTV
B44: Acquisition Costs and Loan Fees | C44: =C38*0.0075 -> 28890 | D44: 28890 | E44: .75% of Ask Price
B45: Length of Mortgage (years) | C45: 25 | D45: 25
B46: Annual Interest Rate | C46: 0.06 | D46: 0.06
B47: Initial Investment | C47: =C42+C44 -> 1184490 | D47: 1184490
B48: Monthly Mortgage Payment (PI) | C48: =IF(C43=0,0,-PMT(C46/12,C45*12,C43)) -> 17372.94299 | D48: 17372.94299
B49: Annual Interest | C49: =IF(C43=0,0,-CUMIPMT(C46/12,C45*12,C43,1,12,0)) -> 160478.3459 | D49: 160478.3459
B50: Annual Principal | C50: =IF(C43=0,0,-CUMPRINC(C46/12,C45*12,C43,1,12,0)) -> 47996.96994 | D50: 47996.96994
B51: Total Annual Debt Service | C51: =C48*12 -> 208475.3159 | D51: 208475.3159
B52: DEBT SERVICE RATIO | C52: =C33/C51 -> 1.25573255 | D52: 1.423363906
B54: Cash Flow and ROI
B55: Total Monthly Cash Flow | C55: =C11-C28-C48 -> 4442.82701 | D55: 7355.07701
B56: Total Annual Cash Flow | C56: =C33-C51 -> 53313.92412 | D56: 88260.92412
B57: Cash on Cash Return (ROI) | C57: =IF(C47=0," ",C56/C47) -> 0.04501002467 | D57: 0.07451386177
B59: Note: This spreadsheet should only be used for informational and educational purposes. Please verify
B60: calculations and seek professional assistance before making financial decisions.

Sheet Rent Roll
A1: Unit Number | B1: Size | C1: Current Rent | D1: Pro Forma | E1: Subsidized | F1: Notes
A2: 101 | C2: 1950 | D2: 2150 | F2: Leased
A3: 102 | C3: 1750 | D3: 1950 | F3: Leased
A4: 103 | C4: 1800 | D4: 2000 | F4: Leased
A5: 104 | C5: 1500 | D5: 1700 | F5: Leased
A6: 105 | C6: 2000 | D6: 2200 | F6: Leased
A7: 106 | C7: 2000 | D7: 2200 | F7: Leased
A8: 201 | C8: 2100 | D8: 2300 | F8: Leased
A9: 202 | C9: 1958 | D9: 2158 | F9: MTM
A10: 203 | C10: 2100 | D10: 2300 | F10: MTM
A11: 204 | C11: 2100 | D11: 2300 | F11: Leased
A12: 206 | C12: 2100 | D12: 2300 | F12: MTM
A13: 207 | C13: 1625 | D13: 1825 | F13: MTM
A14: 208 | C14: 2500 | D14: 2700 | F14: Leased
A15: BT1 | C15: 2400 | D15: 2600 | F15: Leased
A16: BT2 | C16: 2400 | D16: 2600 | F16: Leased
A17: Just finished renovetion | C17: 1550 | D17: 1750 | E17: VACANT
A18: Total | C18: =SUM(C2:C17) -> 31833 | D18: 35033
